[Event "14th Margaryan Memorial-IM 2024"]
[Site "Yerevan"]
[Date "2024.01.15"]
[Round "8.5"]
[White "Ohanyan, Emin"]
[Black "Sorensen, Hampus"]
[Result "1-0"]
[ECO "C45"]
[WhiteElo "2456"]
[BlackElo "2458"]
[Annotator "TA"]
[PlyCount "93"]
[EventDate "2024.01.08"]
[EventType "tourn"]
[EventCountry "ARM"]
[SourceTitle "playchess.com"]
[Source "ChessBase"]
[SourceQuality "1"]
[TimeControl "40/5400+30:1800+30"]

{[%evp 11,93,23,22,21,33,0,5,0,-13,-7,-12,-18,-22,-21,-2,-24,-23,-43,-38,-65,-67,-72,-76,-87,-6,-6,-6,-8,0,-2,0,0,0,0,0,0,0,0,0,0,14,0,0,0,0,0,0,-47,8,5,15,0,131,122,147,154,304,310,306,309,294,302,287,274,362,357,328,285,1093,977,3611,3623,29985,29986,29986,29987,29987,2075,29993,29994,29996,29997,29997,29998]} 1. e4 {[%emt 0:06:37]} e5 {[%emt 0:00:13]} 2. Nf3 {[%emt 0:00:03]} Nc6 {[%emt 0:00:09]} 3. d4 {[%emt 0:00:34]} exd4 {[%emt 0:00:12]} 4. Nxd4 {[%emt 0:00:07]} Qf6 {[%emt 0:00:17]} 5. Be3 {[%emt 0:02:52]} Bc5 {[%emt 0:01:28]} 6. c3 {[%emt 0:01:26]} d6 {[%emt 0:02:54]} 7. Be2 {[%emt 0:03:25] C45: Scotch Game.} Qg6 {[%emt 0:02:50]} (7... Nge7 {simplifies} 8. O-O O-O 9. Nxc6 Nxc6 10. Bxc5 dxc5 11. f4 Be6) 8. O-O {[%emt 0:07:41]} (8. Nb5 {with more complications.} Bxe3 9. Nxc7+ Kd7 10. Nxa8 Qxg2 11. Rf1) 8... Nf6 {[%emt 0:22:02] Wards off Bh5} 9. Nd2 {[%emt 0:13:32] The position is equal.} Bh3 {[%emt 0:01:46][%csl Gh3][%cal Rg6g2]} 10. Bf3 {[%emt 0:00:13]} Ne5 {[%emt 0:00:36][%cal Of6h5]} 11. Kh1 {[%emt 0:03:23]} Bd7 {[%emt 0:09:25] [#]} 12. Be2 $146 {[%emt 0:31:19]} ({Predecessor:} 12. a4 a5 13. Qe2 O-O 14. g3 Nxf3 15. Qxf3 Rae8 16. Qf4 Nxe4 17. N2f3 Re7 18. Rfe1 {0-1 Philipp,G-Jakoby,H GER-ch Seniors 13th 2001 (4)}) 12... Neg4 $1 {[%emt 0:05:12]} (12... Nxe4 13. Bh5 Nxd2 14. Bxg6 Nxf1 15. Bxf7+ Nxf7 16. Qxf1 $16) 13. Bxg4 {[%emt 0:01:53]} Nxg4 {[%emt 0:00:14]} 14. Qf3 {[%emt 0:01:54]} Nxe3 {[%emt 0:05:41]} ({But not} 14... Qh5 15. h3 $11) 15. fxe3 {[%emt 0:00:18]} O-O {[%emt 0:01:27]} 16. b4 {[%emt 0:05:51]} Bb6 {[%emt 0:00:19]} 17. a4 {[%emt 0:00:56]} Rae8 {[%emt 0:19:32]} (17... a6 $17) 18. a5 $11 {[%emt 0:00:32]} Bxd4 {[%emt 0:01:26]} 19. exd4 {[%emt 0:00:02]} Bc6 {[%emt 0:03:18][%cal Rc6e4]} 20. Rae1 {[%emt 0:00:51][%cal Ba1e1,Be1e3,Be3g3][%mdl 32]} Re7 {[%emt 0:01:45]} 21. c4 {[%emt 0:09:16]} Rfe8 {[%emt 0:08:30][%cal Rc6e4]} 22. d5 {[%emt 0:00:05]} Bd7 {[%emt 0:00:09]} 23. h3 {[%emt 0:01:01]} Re5 {[%emt 0:02:24]} 24. Qf4 {[%emt 0:02:47]} h6 {[%emt 0:04:16]} 25. Re3 {[%emt 0:01:25]} b6 {[%emt 0:00:40]} 26. axb6 {[%emt 0:01:58]} axb6 {[%emt 0:00:02]} 27. Rfe1 {[%emt 0:00:13]} f6 {[%emt 0:05:00]} 28. Ra1 {[%emt 0:03:36]} f5 {[%emt 0:00:24]} 29. Ra7 {[%emt 0:00:37]} (29. Rg3 $11 Qf6 30. Ra7) 29... Rc8 {[%emt 0:01:30]} (29... fxe4 $15 30. Qf2 (30. Rxc7 Rf8 $17) 30... Rc8) 30. Rg3 {[%emt 0:00:31]} Qf7 {[%emt 0:00:41]} (30... Qf6 {keeps more tension.} 31. c5 dxc5 32. bxc5 bxc5 33. Ra6 Qxa6 34. Qxe5 g5) 31. exf5 {[%emt 0:00:29]} (31. c5 {simplifies} bxc5 32. bxc5 fxe4 33. Qxf7+ Kxf7 34. cxd6 Rxd5 35. Nxe4 Re5 36. Nc3) 31... Rxf5 {[%emt 0:01:02]} (31... Bxf5 $11 32. Kh2 (32. Qxh6 Bxh3 33. Kg1 Bf5 $11) 32... g5) 32. Qxh6 $16 {[%emt 0:00:17] White has more active pieces. White leaves nothing to chance now.} b5 {[%emt 0:00:20] [#]} 33. cxb5 $1 {[%emt 0:00:39] Hoping for Ne4.} Bxb5 {[%emt 0:00:27] [#]} (33... Rf6 $16 {keeps fighting.} 34. Qe3 Bxb5) 34. Rxg7+ $3 $18 {[%mdl 576] Deflection} Qxg7 {[%emt 0:00:01]} 35. Qe6+ {[%emt 0:00:33]} Rf7 {[%emt 0:00:07]} 36. Qxc8+ {[%emt 0:00:04]} Kh7 {[%emt 0:00:03]} 37. Qe6 {[%emt 0:01:16]} Bd3 {[%emt 0:01:17]} 38. Qe3 {[%emt 0:00:39] Against Rf2} Bf5 {[%emt 0:01:11]} 39. Nf3 {[%emt 0:00:31] Ng5+ would be deadly.} Re7 $2 {[%emt 0:00:02]} (39... Qh6 40. Qe8 Kg7) 40. Qf4 {[%emt 0:00:00]} ({Weaker is} 40. Ng5+ Kg6 41. Ne6 Bxe6 $18) 40... Qf6 {[%emt 0:00:00]} 41. g4 {[%emt 0:18:44]} Qb2 {[%emt 0:17:00]} 42. Qxf5+ {[%emt 0:00:09]} Kg7 {[%emt 0:00:06]} 43. Qg5+ {[%emt 0:00:16]} Kf7 {[%emt 0:00:04]} 44. Qf4+ {[%emt 0:00:09]} (44. Ra8 $142 Qb1+ 45. Kh2 Re2+ 46. Kg3 Qg6 47. Qd8 Qg7 48. Qd7+ Kf6 49. g5+ Qxg5+ 50. Nxg5) 44... Kg6 {[%emt 0:00:12]} 45. Nh4+ {[%emt 0:00:14] White mates.} Kh7 {[%emt 0:00:07]} 46. Qf5+ {[%emt 0:00:04]} Kg7 {[%emt 0:00:08]} 47. Qg6+ {[%emt 0:00:02] Weighted Error Value: White=0.07 (flawless) /Black=0.48} 1-0

[Event "14th Margaryan Memorial-IM 2024"]
[Site "Yerevan"]
[Date "2024.01.15"]
[Round "8.6"]
[White "Zakaryan, David"]
[Black "Pashikyan, Rudolf"]
[Result "1-0"]
[ECO "C47"]
[WhiteElo "2299"]
[BlackElo "2287"]
[Annotator "RC"]
[PlyCount "43"]
[EventDate "2024.01.08"]
[EventType "tourn"]
[EventCountry "ARM"]
[SourceTitle "playchess.com"]
[Source "ChessBase"]
[SourceQuality "1"]
[TimeControl "40/5400+30:1800+30"]

1. e4 {[%emt 0:00:03]} e5 {[%emt 0:00:22]} 2. Nf3 {[%emt 0:00:02]} Nc6 {[%emt 0:00:07]} 3. Nc3 {[%emt 0:00:03]} Nf6 {[%emt 0:00:16]} 4. d4 {[%emt 0:00:04]} exd4 {[%emt 0:00:05]} 5. Nxd4 {[%emt 0:00:02]} Bb4 {[%emt 0:00:11]} 6. Nxc6 {[%emt 0:00:04]} bxc6 {[%emt 0:00:05]} 7. Bd3 {[%emt 0:00:02]} O-O {[%emt 0:00:28]} 8. O-O {[%emt 0:00:28]} Re8 {[%emt 0:00:56]} 9. Bg5 {[%emt 0:00:01]} d6 {[%emt 0:02:11]} 10. f4 {[%emt 0:03:50]} Qe7 {[%emt 0:04:09]} 11. Kh1 {[%emt 0:02:48]} Qe6 {[%emt 0:07:25]} 12. e5 {[%emt 0:04:27]} dxe5 {[%emt 0:13:42]} 13. f5 {[%emt 0:09:01]} Qd6 {[%emt 0:01:22]} 14. Bxf6 {[%emt 0:00:02]} Qxf6 {[%emt 0:00:13]} 15. Ne4 {[%emt 0:00:02]} Qd8 {[%emt 0:06:32]} 16. Qg4 {[%emt 0:02:46]} Bf8 {[%emt 0:01:11]} 17. Rad1 {[%emt 0:00:48]} Qe7 {[%emt 0:12:34]} 18. Ng5 {[%emt 0:01:15]} h6 {[%emt 0:03:45]} 19. Nxf7 {[%emt 0:00:24]} Qf6 {[%emt 0:00:03]} 20. Bc4 {[%emt 0:02:51]} Kh7 {[%emt 0:00:13]} 21. Rd3 {[%emt 0:15:31]} Be7 {[%emt 0:01:03]} 22. Rg3 {[%emt 0:02:13]} 1-0

[Event "14th Margaryan Memorial-IM 2024"]
[Site "Yerevan"]
[Date "2024.01.15"]
[Round "8.7"]
[White "Lomsadze, Davit"]
[Black "Putrenko, Kirill"]
[Result "0-1"]
[ECO "A43"]
[WhiteElo "2253"]
[BlackElo "2353"]
[Annotator "TA"]
[PlyCount "64"]
[EventDate "2024.01.08"]
[EventType "tourn"]
[EventCountry "ARM"]
[SourceTitle "playchess.com"]
[Source "ChessBase"]
[SourceQuality "1"]
[TimeControl "40/5400+30:1800+30"]

{[%evp 16,64,0,-12,0,0,0,-18,-11,0,-10,0,20,-122,-140,-214,-221,-187,-181,-217,-214,-231,-240,-393,-395,-490,-478,-693,-696,-674,-675,-764,-633,-703,-692,-1833,-1835,-1554,-1263,-1156,-893,-29985,-29986,-29985,-29986,-29992,-29990,-29996,-29997,-29997,-29998]} 1. d4 {[%emt 0:00:02]} Nf6 {[%emt 0:00:15]} 2. Nf3 {[%emt 0:00:02]} d5 {[%emt 0:00:25]} 3. g3 {[%emt 0:00:08]} c5 {[%emt 0:00:43]} 4. Bg2 {[%emt 0:00:14]} cxd4 {[%emt 0:00:56]} 5. Nxd4 {[%emt 0:00:05]} e5 {[%emt 0:01:45]} 6. Nb3 {[%emt 0:00:01]} Nc6 {[%emt 0:05:56]} 7. Bg5 {[%emt 0:01:18]} Be6 {[%emt 0:01:39]} 8. O-O {[%emt 0:02:10]} Be7 {[%emt 0:01:49]} 9. Nc3 {[%emt 0:00:23] 9.Bxf6 might become the main line.} d4 {[%emt 0:01:58] A43: Schmid Benoni.} 10. Na4 {[%emt 0:00:44]} Bd5 {[%emt 0:09:22] [#] ...Bxg2 is the strong threat.} 11. Bxf6 {[%emt 0:01:30]} gxf6 {[%emt 0:01:24] The position is equal.} 12. Qd3 {[%emt 0:03:38]} Bxg2 {[%emt 0:06:34]} 13. Kxg2 {[%emt 0:03:20] [#]} Rc8 $146 {[%emt 0:14:08]} ({Predecessor:} 13... h5 14. h3 Qd7 15. Qf3 f5 16. Nac5 e4 17. Qf4 Bxc5 18. Nxc5 Qd5 19. Nxb7 Ne7 {1-0 Garcia Martinez,M (1955)-Gonzalez Santamartina,J (1917) Villa Navarrete 2013 (3.5)}) 14. c3 {[%emt 0:00:58]} (14. Qf3 $11) 14... Qd7 $17 {[%emt 0:03:38]} 15. Qb5 {[%emt 0:04:33]} (15. f4 $17 {might work better.}) 15... a6 $19 {[%emt 0:01:41]} 16. Qd3 {[%emt 0:00:16] aiming for Nb6.} Na7 {[%emt 0:02:35]} 17. cxd4 {[%emt 0:00:12] Black must now prevent Nc3.} Qxa4 {[%emt 0:00:24]} 18. Rac1 {[%emt 0:00:45]} O-O {[%emt 0:05:34][%cal Bh8f8,Bf8e8,Be8e2][%mdl 32]} ({Don't take} 18... Qxa2 19. Rxc8+ Nxc8 20. Qc2 $18) 19. f4 $2 {[%emt 0:00:49]} (19. Qf3) 19... exd4 {[%emt 0:03:24]} (19... Qxa2 $2 {too greedy.} 20. Rxc8 Nxc8 21. fxe5 fxe5 22. dxe5 Qxb2 23. Rf5 $19) 20. Qe4 {[%emt 0:02:44]} Nc6 {[%emt 0:04:51]} (20... Qxa2 $2 {loses.} 21. Qxb7 d3 22. exd3 Rxc1 23. Nxc1 $19) 21. Nc5 {[%emt 0:02:08]} (21. Qf3 $142) 21... Bxc5 {[%emt 0:03:51]} 22. Rxc5 {[%emt 0:00:01]} Rfe8 {[%emt 0:00:43]} 23. Qf3 {[%emt 0:00:08]} Qxa2 {[%emt 0:01:32]} 24. Qg4+ {[%emt 0:00:47]} Kf8 {[%emt 0:00:49]} 25. Qh4 {[%emt 0:00:56]} Rxe2+ {[%emt 0:00:37]} 26. Kh3 {[%emt 0:00:02]} Qe6+ {[%emt 0:02:53]} 27. f5 {[%emt 0:00:02]} Qe4 {[%emt 0:10:19]} 28. Qxf6 {[%emt 0:01:50]} Qg2+ {[%emt 0:00:16] Black mates.} 29. Kg4 {[%emt 0:00:02]} Qxf1 {[%emt 0:01:47]} 30. Qh8+ {[%emt 0:00:02]} Ke7 {[%emt 0:00:01]} 31. Qxc8 {[%emt 0:00:08]} Re4+ {[%emt 0:00:14]} 32. Kg5 {[%emt 0:00:08] [#]} h6+ $1 {[%emt 0:00:11] White did not feel at home in the position after the opening.   Weighted Error Value: White=0.95/Black=0.43} 0-1

[Event "14th Margaryan Memorial-IM 2024"]
[Site "Yerevan"]
[Date "2024.01.15"]
[Round "8.8"]
[White "Kaiyrbekov, Rustam"]
[Black "Ambartsumian, Tyhran"]
[Result "1/2-1/2"]
[ECO "D30"]
[WhiteElo "2295"]
[BlackElo "2224"]
[Annotator "NA"]
[PlyCount "132"]
[EventDate "2024.01.08"]
[EventType "tourn"]
[EventCountry "ARM"]
[SourceTitle "playchess.com"]
[Source "ChessBase"]
[SourceQuality "1"]
[TimeControl "40/5400+30:1800+30"]

1. d4 {[%emt 0:00:30]} d5 {[%emt 0:05:27]} 2. c4 {[%emt 0:00:42]} c6 {[%emt 0:00:06]} 3. Nf3 {[%emt 0:00:09]} Nf6 {[%emt 0:00:15]} 4. Qc2 {[%emt 1:31:09]} e6 {[%emt 0:00:08]} 5. Nbd2 {[%emt 0:00:00]} c5 {[%emt 0:00:18]} 6. cxd5 {[%emt 0:01:00]} cxd4 {[%emt 0:00:48]} 7. Nxd4 {[%emt 0:00:00]} exd5 {[%emt 0:00:10]} 8. e3 {[%emt 0:00:00]} Bd6 {[%emt 0:10:02]} 9. Be2 {[%emt 0:00:00]} O-O {[%emt 0:00:19]} 10. O-O {[%emt 0:00:00]} Nbd7 {[%emt 0:01:46]} 11. N2f3 {[%emt 0:00:00]} Ne5 {[%emt 0:02:58]} 12. b3 {[%emt 0:00:00]} Bd7 {[%emt 0:09:07]} 13. Nxe5 {[%emt 0:00:00]} Bxe5 {[%emt 0:01:40]} 14. Bb2 {[%emt 0:00:00]} Rc8 {[%emt 0:00:21]} 15. Qd1 {[%emt 0:00:00]} Ne4 $11 {[%emt 0:06:55]} 16. Qe1 {[%emt 0:00:00]} f5 {[%emt 0:16:32]} 17. g3 {[%emt 0:00:00]} Qb6 {[%emt 0:05:28]} 18. Rd1 {[%emt 0:00:00]} Rfe8 {[%emt 0:05:42]} 19. Ba1 {[%emt 0:00:00]} Bd6 {[%emt 0:06:11]} 20. Bd3 {[%emt 0:00:00]} Bb4 {[%emt 0:01:00]} 21. Qe2 {[%emt 0:00:00]} a6 {[%emt 0:00:10]} 22. Rc1 {[%emt 0:00:00]} Qg6 {[%emt 0:08:50]} 23. Rxc8 {[%emt 0:00:00]} Rxc8 {[%emt 0:00:21]} 24. Bb2 {[%emt 0:00:00]} h5 {[%emt 0:00:25]} 25. Nf3 {[%emt 0:00:00]} Nc3 {[%emt 0:01:17]} 26. Bxc3 {[%emt 0:00:00]} Bxc3 {[%emt 0:00:07]} 27. Rc1 {[%emt 0:00:00]} Qf6 {[%emt 0:00:43]} 28. h4 {[%emt 0:00:00]} g6 {[%emt 0:00:38]} 29. Qd1 {[%emt 0:00:00]} b5 {[%emt 0:00:56]} 30. Bf1 {[%emt 0:12:00]} Qd6 {[%emt 0:04:06]} 31. Qd3 {[%emt 0:00:00]} Bf6 {[%emt 0:02:38]} 32. Rxc8+ {[%emt 0:00:00]} Bxc8 {[%emt 0:00:06]} 33. Qc2 {[%emt 0:01:30]} Bd7 {[%emt 0:11:30]} 34. Nd4 {[%emt 0:00:00]} Kf7 {[%emt 0:00:00]} 35. Qd2 {[%emt 0:00:00]} Ke7 {[%emt 0:00:00]} 36. b4 {[%emt 0:00:00]} Be8 {[%emt 0:00:00]} 37. Bg2 {[%emt 0:00:00]} Bf7 {[%emt 0:02:00]} 38. Bf3 {[%emt 0:00:00]} Qb6 {[%emt 0:00:00]} 39. Bd1 {[%emt 0:03:00]} f4 {[%emt 0:01:00]} 40. gxf4 {[%emt 0:00:00]} Bxh4 {[%emt 0:00:30]} 41. Bxh5 {[%emt 0:31:00]} Bf6 {[%emt 0:30:30]} 42. Bf3 {[%emt 0:00:00]} Qd6 {[%emt 0:00:00]} 43. Qc3 {[%emt 0:00:00]} Kf8 {[%emt 0:00:00]} 44. Kf1 {[%emt 0:00:00]} Be7 {[%emt 0:01:30]} 45. a3 {[%emt 0:00:00]} Bf6 {[%emt 0:00:00]} 46. Ke2 {[%emt 0:00:00]} Kg7 {[%emt 0:00:00]} 47. Bg4 {[%emt 0:00:00]} Qb6 {[%emt 0:00:00]} 48. Kd3 {[%emt 0:00:00]} Qd6 {[%emt 0:00:00]} 49. Qc5 {[%emt 0:00:00]} Qd8 {[%emt 0:00:00]} 50. Qc6 {[%emt 0:00:00]} Qe7 {[%emt 0:00:00]} 51. f3 {[%emt 0:00:00]} a5 {[%emt 0:00:00]} 52. Qxb5 {[%emt 0:04:09]} axb4 {[%emt 0:00:00]} 53. Qxb4 {[%emt 0:00:09]} Qc7 {[%emt 0:00:00]} 54. Kd2 {[%emt 0:00:32]} Kh7 {[%emt 0:00:00]} 55. a4 {[%emt 0:00:39]} Be7 {[%emt 0:00:00]} 56. Qb5 {[%emt 0:00:24]} Qd6 {[%emt 0:06:00]} 57. a5 {[%emt 0:01:20]} Qa3 {[%emt 0:00:00]} 58. Nc2 {[%emt 0:00:39]} Qa2 {[%emt 0:00:00]} 59. a6 {[%emt 0:00:28]} d4 {[%emt 0:00:00]} 60. exd4 {[%emt 0:00:28]} Bb3 {[%emt 0:00:00]} 61. Qd3 {[%emt 0:00:31]} Bb4+ {[%emt 0:00:00]} 62. Kc1 {[%emt 0:00:09]} Bxc2 {[%emt 0:00:00]} 63. Qxc2 {[%emt 0:00:10]} Qa1+ {[%emt 0:00:00]} 64. Qb1 {[%emt 0:01:52]} Qc3+ {[%emt 0:04:00]} 65. Qc2 {[%emt 0:00:00]} Qa1+ {[%emt 0:00:00]} 66. Qb1 {[%emt 0:00:00]} Qc3+ {[%emt 0:01:00]} 1/2-1/2

[Event "14th Margaryan Memorial-IM 2024"]
[Site "Yerevan"]
[Date "2024.01.15"]
[Round "8.9"]
[White "Sagradov Sahakyan, Alexander"]
[Black "Rostomyan, Mikayel"]
[Result "1-0"]
[ECO "D38"]
[WhiteElo "1423"]
[BlackElo "2294"]
[Annotator "NA RC"]
[PlyCount "75"]
[EventDate "2024.01.08"]
[EventType "tourn"]
[EventCountry "ARM"]
[SourceTitle "playchess.com"]
[Source "ChessBase"]
[SourceQuality "1"]
[TimeControl "40/5400+30:1800+30"]

1. Nf3 {[%emt 0:00:03]} Nf6 {[%emt 0:00:12]} 2. c4 {[%emt 0:00:06]} e6 {[%emt 0:00:18]} 3. Nc3 {[%emt 0:00:10]} d5 {[%emt 0:00:54]} 4. d4 {[%emt 0:00:09]} Bb4 {[%emt 0:00:26]} 5. Bg5 {[%emt 0:00:07]} h6 {[%emt 0:00:50]} 6. Bxf6 {[%emt 0:00:08]} Qxf6 {[%emt 0:00:03]} 7. e3 {[%emt 0:00:05]} O-O {[%emt 0:02:09]} 8. Rc1 {[%emt 0:00:07]} dxc4 {[%emt 0:02:08]} 9. Bxc4 {[%emt 0:00:10]} c5 {[%emt 0:00:25]} 10. O-O {[%emt 0:00:26]} cxd4 {[%emt 0:01:23]} 11. Ne4 {[%emt 0:00:03]} Qe7 {[%emt 0:00:41]} 12. a3 {[%emt 0:00:21]} Ba5 {[%emt 0:02:25]} 13. exd4 {[%emt 0:02:09]} Rd8 {[%emt 0:03:29]} 14. Rc2 {[%emt 0:00:57]} Nd7 {[%emt 0:02:33]} 15. b4 {[%emt 0:29:42]} Bb6 {[%emt 0:01:12]} 16. Re1 {[%emt 0:04:21]} Nf6 {[%emt 0:02:46]} 17. Nc5 {[%emt 0:02:53]} a5 {[%emt 0:06:29]} 18. Rce2 {[%emt 0:02:09]} Nd5 {[%emt 0:05:58]} 19. Qb3 {[%emt 0:01:16]} Qf6 {[%emt 0:02:43]} 20. Ne5 {[%emt 0:09:44]} axb4 {[%emt 0:01:39]} 21. axb4 {[%emt 0:01:23]} Bc7 {[%emt 0:06:25]} 22. g3 {[%emt 0:11:09]} Qe7 {[%emt 0:07:50]} 23. Nxf7 {[%emt 0:02:04]} Qxf7 {[%emt 0:02:27]} 24. Nxe6 {[%emt 0:01:08]} Bxe6 {[%emt 0:01:02]} 25. Rxe6 {[%emt 0:00:18]} Ra1 {[%emt 0:01:23]} 26. Re8+ {[%emt 0:05:03]} Rxe8 {[%emt 0:00:29]} 27. Rxa1 {[%emt 0:00:04]} Kh8 {[%emt 0:05:05]} 28. Bxd5 {[%emt 0:00:06]} Qf6 {[%emt 0:00:02]} 29. Bxb7 {[%emt 0:03:29]} Qxd4 {[%emt 0:00:12]} 30. Rd1 {[%emt 0:00:08]} Qf6 {[%emt 0:00:27]} 31. Bf3 {[%emt 0:02:09]} Bb6 {[%emt 0:00:33]} 32. Kg2 {[%emt 0:00:46]} Rc8 {[%emt 0:00:39]} 33. Rd5 {[%emt 0:01:24]} Qe7 {[%emt 0:01:16]} 34. Rd2 {[%emt 0:03:08]} Rf8 {[%emt 0:01:39]} 35. b5 {[%emt 0:02:08]} Qc5 {[%emt 0:01:03]} 36. Qd5 {[%emt 0:00:19]} Qc3 {[%emt 0:01:32]} 37. Re2 {[%emt 0:00:41]} Rb8 {[%emt 0:04:05]} 38. Qc6 {[%emt 0:01:54]} 1-0

[Event "14th Margaryan Memorial-IM 2024"]
[Site "Yerevan"]
[Date "2024.01.15"]
[Round "8.10"]
[White "Hayrapetyan, Edgar"]
[Black "Gasparyan, Erik R."]
[Result "1/2-1/2"]
[ECO "A22"]
[WhiteElo "2233"]
[BlackElo "2340"]
[Annotator "RC"]
[PlyCount "32"]
[EventDate "2024.01.08"]
[EventType "tourn"]
[EventCountry "ARM"]
[SourceTitle "playchess.com"]
[Source "ChessBase"]
[SourceQuality "1"]
[TimeControl "40/5400+30:1800+30"]

1. c4 {[%emt 0:00:05]} e5 {[%emt 0:00:27]} 2. Nc3 {[%emt 0:00:30]} Nf6 {[%emt 0:00:03]} 3. Nf3 {[%emt 0:00:09]} e4 {[%emt 0:00:04]} 4. Ng5 {[%emt 0:00:03]} c6 {[%emt 0:00:04]} 5. Ngxe4 {[%emt 0:00:04]} Nxe4 {[%emt 0:00:03]} 6. Nxe4 {[%emt 0:00:04]} d5 {[%emt 0:00:05]} 7. cxd5 {[%emt 0:00:02]} cxd5 {[%emt 0:00:04]} 8. Ng3 {[%emt 0:00:02]} h5 {[%emt 0:00:05]} 9. e3 {[%emt 0:00:04]} h4 {[%emt 0:00:03]} 10. Ne2 {[%emt 0:00:02]} Nc6 {[%emt 0:00:04]} 11. d4 {[%emt 0:00:05]} Qf6 {[%emt 0:00:06]} 12. Nc3 {[%emt 0:00:07]} Qg6 {[%emt 0:00:02]} 13. f3 {[%emt 0:00:06]} Bd6 {[%emt 0:00:04]} 14. Kf2 {[%emt 0:00:04]} Bg3+ {[%emt 0:00:03]} 15. Kg1 {[%emt 0:00:04]} Bd6 {[%emt 0:00:03]} 16. Kf2 {[%emt 0:00:04]} Bg3+ {[%emt 0:00:03]} 1/2-1/2

[Event "14th Margaryan Memorial-IM 2024"]
[Site "Yerevan"]
[Date "2024.01.16"]
[Round "9.6"]
[White "Gasparyan, Erik R."]
[Black "Zakaryan, David"]
[Result "1/2-1/2"]
[ECO "B45"]
[WhiteElo "2340"]
[BlackElo "2299"]
[Annotator "TA"]
[PlyCount "103"]
[EventDate "2024.01.08"]
[EventType "tourn"]
[EventCountry "ARM"]
[SourceTitle "playchess.com"]
[Source "ChessBase"]
[SourceQuality "1"]
[TimeControl "40/5400+30:1800+30"]

{[%evp 22,103,24,19,24,27,33,26,17,25,23,17,26,0,0,0,0,0,12,11,25,10,22,4,8,0,0,0,1,0,0,0,0,0,0,0,0,0,0,0,0,0,0,0,0,0,0,0,0,0,0,0,0,0,0,0,0,0,0,0,0,0,0,0,0,0,0,0,0,0,0,0,0,0,0,0,0,0,0,0,0,0,6,39]} 1. e4 {[%emt 0:02:02]} c5 {[%emt 0:00:05]} 2. Nc3 {[%emt 0:00:35]} e6 {[%emt 0:00:01]} 3. Nf3 {[%emt 0:00:26]} Nc6 {[%emt 0:00:14]} 4. d4 {[%emt 0:00:37]} cxd4 5. Nxd4 {[%emt 0:00:04]} Nf6 {[%emt 0:01:22]} 6. Nxc6 {[%emt 0:04:43]} bxc6 {[%emt 0:00:29]} 7. e5 {[%emt 0:00:03]} Nd5 {[%emt 0:00:05]} 8. Ne4 {[%emt 0:00:03]} Qc7 {[%emt 0:00:03]} 9. f4 {[%emt 0:00:04]} Qb6 {[%emt 0:00:44]} 10. c4 {[%emt 0:00:25]} Bb4+ {[%emt 0:02:03]} 11. Ke2 {[%emt 0:00:28]} f5 {[%emt 0:00:05]} 12. exf6 {[%emt 0:01:41]} Nxf6 {[%emt 0:00:02] B45: Sicilian Four Knights.} 13. Be3 {[%emt 0:00:07] The board is on fire.} Qd8 {[%emt 0:00:37]} 14. Nd6+ {[%emt 0:00:22]} Bxd6 {[%emt 0:00:11] White has an edge.} 15. Qxd6 {[%emt 0:00:05]} Bb7 {[%emt 0:00:13][%cal Oc6c5] Black is weak on the dark squares} 16. Rd1 {[%emt 0:09:39]} Rc8 {[%emt 0:01:48][%cal Oc6c5,Ba8c8,Bc8c7,Bc7b7][%mdl 32]} 17. c5 {[%emt 0:10:50]} Ba6+ $1 {[%emt 0:02:24]} 18. Kf3 {[%emt 0:01:24]} Bxf1 {[%emt 0:00:31]} 19. Rhxf1 {[%emt 0:00:05][%cal Of4f5] [#]} Qc7 $146 {[%emt 0:05:41]} (19... Nd5 $5 {[%cal Rd8h4]}) ({Predecessor:} 19... Nd5 20. g3 Rf8 21. Qe5 Qe7 22. Rde1 Rf5 23. Qxf5 exf5 24. Bd4 Qxe1 25. Rxe1+ Kf7 {½-½ Fuehrer,F-Bernitt,S RR-22941 freechess.de 2021}) 20. Qxc7 {[%emt 0:09:09]} Rxc7 {[%emt 0:00:18]} 21. Bd4 {[%emt 0:02:13]} O-O {[%emt 0:00:03] The position is equal.} 22. Rd3 {[%emt 0:03:45]} Rb7 {[%emt 0:02:14]} 23. Be5 {[%emt 0:01:14]} Nd5 {[%emt 0:06:29]} 24. g3 {[%emt 0:01:02]} a5 {[%emt 0:06:49]} 25. Rb3 {[%emt 0:06:27]} Rxb3+ {[%emt 0:06:13]} 26. axb3 $11 {[%emt 0:00:08][%mdl 4096] Endgame KRB-KRN} Ra8 {[%emt 0:00:15]} 27. Ke4 {[%emt 0:16:00]} Ra7 {[%emt 0:00:39]} 28. Bd4 {[%emt 0:03:22]} Rb7 {[%emt 0:01:52]} 29. Ra1 {[%emt 0:04:15]} Rxb3 {[%emt 0:01:19]} 30. Rxa5 {[%emt 0:00:12]} Kf7 {[%emt 0:03:07]} 31. Ra7 {[%emt 0:03:43]} Nf6+ {[%emt 0:00:03]} 32. Bxf6 {[%emt 0:00:57]} Kxf6 {[%emt 0:00:02]} 33. Rxd7 {[%emt 0:00:28]} Rxb2 {[%emt 0:00:24] KR-KR} 34. Rd6 {[%emt 0:00:05]} Rxh2 {[%emt 0:00:04]} 35. Rxc6 {[%emt 0:00:06]} Re2+ {[%emt 0:00:19]} 36. Kf3 {[%emt 0:00:16]} Rc2 {[%emt 0:00:06]} 37. Rc8 {[%emt 0:00:35]} Rc3+ {[%emt 0:01:41]} 38. Kg4 {[%emt 0:00:12]} Rc4 {[%emt 0:00:38]} 39. Kh5 {[%emt 0:03:40]} Rc3 {[%emt 0:01:57]} 40. c6 {[%emt 0:00:00]} Rc5+ {[%emt 0:00:00]} 41. Kg4 {[%emt 0:15:47]} Rc3 {[%emt 0:18:16]} 42. c7 {[%emt 0:01:34] [#] White threatens Rf8+ and mate.} Kg6 {[%emt 0:00:55]} 43. Kh4 {[%emt 0:00:08]} Kf7 {[%emt 0:00:44]} 44. g4 {[%emt 0:01:29]} Kg6 {[%emt 0:00:07]} 45. f5+ {[%emt 0:00:58]} exf5 {[%emt 0:00:07]} 46. gxf5+ {[%emt 0:00:04]} Kh6 {[%emt 0:02:13]} 47. Kg4 {[%emt 0:00:05]} Rc4+ {[%emt 0:00:19]} 48. Kf3 {[%emt 0:00:01]} Rc1 {[%emt 0:01:07]} 49. Ke4 {[%emt 0:01:42]} Re1+ {[%emt 0:00:08]} 50. Kd5 {[%emt 0:00:05]} Rd1+ {[%emt 0:00:04]} 51. Ke6 {[%emt 0:00:07] [#] White wants to mate with Rh8.} Re1+ {[%emt 0:00:04]} 52. Kf7 {[%emt 0:01:34] An even fight not without its subleties.   Weighted Error Value: White=0.02 (flawless) /Black=0.01 (flawless)} 1/2-1/2